fUSD/lending_fUSD_20240814
["ID","MTS","AMOUNT","RATE_DAILY","PERIOD"]
[334887000,1723626681864,-1854.98,0.00016986,2]
[334887001,1723626681874,-500.0,0.00016986,2]
[334887002,1723626681885,-556.33,0.00016986,2]
[334887003,1723626681895,-642.83,0.00016986,2]
[334887004,1723626681905,-500.0,0.00016986,2]
[334887005,1723626681915,-500.0,0.00016986,2]
[334887006,1723626681926,-659.96,0.00016986,2]
[334887007,1723626681935,-635.37,0.00016986,2]
[334887008,1723626681946,-810.55,0.00016986,2]
[334887009,1723626681955,-500.0,0.00016986,2]
[334887010,1723626681965,-500.0,0.00016986,2]
[334887011,1723626681975,-500.0,0.00016986,2]
[334887012,1723626681985,-893.45,0.00016986,2]
[334887013,1723626681995,-734.11,0.00016986,2]
[334887014,1723626682005,-1023.98,0.00016986,2]
[334887015,1723626682016,-2346.66,0.00016986,2]
[334887016,1723626682026,-500.0,0.00016986,2]
[334887017,1723626682036,-7848.21,0.00016986,2]
[334887018,1723626682046,-500.0,0.00016986,2]
[334887019,1723626682056,-687.93,0.00016986,2]
[334887020,1723626682066,-743.2,0.00016986,2]
[334887021,1723626682077,-4646.4907258,0.00016988,2]
[334887022,1723626682087,-42152.12434799,0.00016997,3]
[334887023,1723626682097,-1800.0,0.00017,6]
[334887024,1723626682107,-150.0,0.00017,6]
[334887025,1723626682117,-150.0,0.00017,6]
[334887026,1723626682127,-150.0,0.00017,6]
[334887027,1723626682137,-92410.75,0.00017,2]
[334887028,1723626682148,-150.0,0.0001705,2]
[334887029,1723626682158,-150.0,0.0001705,2]
[334887030,1723626682169,-150.0,0.00017074,2]
[334887031,1723626682179,-150.0,0.00017117,2]
[334887032,1723626682189,-167.0,0.00017137,2]
[334887033,1723626682199,-167.0,0.00017137,2]
[334887034,1723626682209,-150.0,0.00017185,2]
[334887035,1723626682219,-150.0,0.00017219,2]
[334887036,1723626682231,-1002.12,0.0001725,2]
[334887037,1723626682241,-150.0,0.00017253,2]
[334887038,1723626682251,-150.0,0.00017253,2]
[334887039,1723626682262,-150.0,0.00017253,2]
[334887040,1723626682272,-150.0,0.00017253,2]
[334887041,1723626682282,-150.0,0.00017253,2]
[334887042,1723626682292,-150.0,0.00017253,2]
[334887043,1723626682303,-150.0,0.00017253,2]
[334887044,1723626682314,-500.0,0.0001726,2]
[334887045,1723626682324,-1500.86,0.0001726,2]
[334887046,1723626682334,-1105.99,0.0001726,2]
[334887047,1723626682344,-154.515367,0.0001726,2]
[334887048,1723626682354,-601.4,0.0001726,2]
[334887049,1723626682365,-849.17,0.0001726,2]
[334887050,1723626682375,-500.0,0.0001726,2]
[334887051,1723626682385,-500.0,0.0001726,2]
[334887052,1723626682395,-500.0,0.0001726,2]
[334887053,1723626682406,-179.28092334,0.0001726,2]
[334887054,1723626682416,-181.2340123,0.0001726,2]
[334887055,1723626682430,-500.0,0.0001726,2]
[334887056,1723626682440,-223.84706918,0.0001726,2]
[334887057,1723626682450,-500.0,0.0001726,2]
[334887058,1723626682460,-512.44,0.0001726,2]
[334887059,1723626682471,-296.00368934,0.0001726,2]
[334887060,1723626682481,-678.29,0.0001726,2]
[334887061,1723626682491,-511.38,0.0001726,2]
[334887062,1723626682503,-500.0,0.0001726,2]
[334887063,1723626682514,-194.14340887,0.0001726,2]
[334887064,1723626682524,-294.37721703,0.0001726,2]
[334887065,1723626682534,-500.0,0.0001726,2]
[334887066,1723626682544,-264.26993319,0.0001726,2]
[334887067,1723626682555,-1974.32,0.0001726,2]
[334887068,1723626682740,-500.0,0.0001726,2]
[334887069,1723626682751,-500.0,0.0001726,2]
[334887070,1723626682760,-226.61,0.0001726,2]
[334887071,1723626682771,-500.0,0.0001726,2]
[334887072,1723626682781,-500.0,0.0001726,2]
[334887073,1723626682790,-591.86,0.0001726,2]
[334887074,1723626682801,-666.36,0.0001726,2]
[334887075,1723626682811,-500.0,0.0001726,2]
[334887076,1723626682821,-500.0,0.0001726,2]
[334887077,1723626682831,-554.42,0.0001726,2]
[334887078,1723626682841,-500.0,0.0001726,2]
[334887079,1723626682852,-500.0,0.0001726,2]
[334887080,1723626682862,-500.0,0.0001726,2]
[334887081,1723626682872,-500.0,0.0001726,2]
[334887082,1723626682882,-500.0,0.0001726,2]
[334887083,1723626682892,-500.0,0.0001726,2]
[334887084,1723626682901,-500.0,0.0001726,2]
[334887085,1723626682911,-573.31,0.0001726,2]
[334887086,1723626682921,-500.0,0.0001726,2]
[334887087,1723626682930,-500.0,0.0001726,2]
[334887088,1723626682939,-500.0,0.0001726,2]
[334887089,1723626682949,-500.0,0.0001726,2]
[334887090,1723626682959,-500.0,0.0001726,2]
[334887091,1723626682969,-783.31,0.0001726,2]
[334887092,1723626682981,-500.0,0.0001726,2]
[334887093,1723626682991,-566.87511321,0.0001726,2]
[334887094,1723626683000,-612.95698848,0.0001726,2]
[334887095,1723626683011,-520.19,0.0001726,2]
[334887096,1723626683020,-500.0,0.0001726,2]
[334887097,1723626683030,-500.0,0.0001726,2]
[334887098,1723626683040,-500.0,0.0001726,2]
[334887099,1723626683050,-922.73,0.0001726,2]
[334887100,1723626683060,-500.0,0.0001726,2]
[334887101,1723626683070,-830.91,0.0001726,2]
[334887102,1723626683079,-500.0,0.0001726,2]
[334887103,1723626683089,-500.0,0.0001726,2]
[334887104,1723626683099,-500.0,0.0001726,2]
[334887105,1723626683109,-690.05,0.0001726,2]
[334887106,1723626683119,-500.0,0.0001726,2]
[334887107,1723626683129,-500.0,0.0001726,2]
[334887108,1723626683140,-818.44,0.0001726,2]
[334887109,1723626683150,-500.0,0.0001726,2]
[334887110,1723626683161,-500.0,0.0001726,2]
[334887111,1723626683172,-500.0,0.0001726,2]
[334887112,1723626683182,-500.0,0.0001726,2]
[334887113,1723626683192,-500.0,0.0001726,2]
[334887114,1723626683201,-542.84,0.0001726,2]
[334887115,1723626683211,-500.0,0.0001726,2]
[334887116,1723626683221,-500.0,0.0001726,2]
[334887117,1723626683232,-609.17,0.0001726,2]
[334887118,1723626683242,-155.83551044,0.0001726,2]
[334887119,1723626683252,-579.6,0.0001726,2]
[334887120,1723626683262,-500.0,0.0001726,2]
[334887121,1723626683272,-653.02,0.0001726,2]
[334887122,1723626683282,-637.94725573,0.0001726,2]
[334887123,1723626683292,-500.0,0.0001726,2]
[334887124,1723626683302,-500.0,0.0001726,2]
[334887125,1723626683312,-2177.45,0.0001726,2]
[334887126,1723626683322,-1063.82,0.0001726,2]
[334887127,1723626683332,-500.0,0.0001726,2]
[334887128,1723626683343,-500.0,0.0001726,2]
[334887129,1723626683353,-845.57,0.0001726,2]
[334887130,1723626683363,-1527.58,0.0001726,2]
[334887131,1723626683373,-676.31,0.0001726,2]
[334887132,1723626683383,-500.0,0.0001726,2]
[334887133,1723626683393,-1715.7,0.0001726,2]
[334887134,1723626683403,-500.0,0.0001726,2]
[334887135,1723626683413,-754.95,0.0001726,2]
[334887136,1723626683424,-500.0,0.0001726,2]
[334887137,1723626683435,-972.03,0.0001726,2]
[334887138,1723626683445,-524.53,0.0001726,2]
[334887139,1723626683454,-500.0,0.0001726,2]
[334887140,1723626683464,-500.0,0.0001726,2]
[334887141,1723626683475,-770.2,0.0001726,2]
[334887142,1723626683485,-608.38,0.0001726,2]
[334887143,1723626683494,-2373.49,0.0001726,2]
[334887144,1723626683506,-562.69,0.0001726,2]
[334887145,1723626683516,-644.93,0.0001726,2]
[334887146,1723626683525,-6691.92,0.0001726,2]
[334887147,1723626683534,-2731.88,0.0001726,2]
[334887148,1723626683543,-2589.64,0.0001726,2]
[334887149,1723626683552,-500.0,0.0001726,2]
[334887150,1723626683562,-552.38,0.0001726,2]
[334887151,1723626683571,-2632.4,0.0001726,2]
[334887152,1723626683581,-1402.43,0.0001726,2]
[334887153,1723626683590,-2123.25,0.0001726,2]
[334887154,1723626683601,-670.79,0.0001726,2]
[334887155,1723626683610,-759.51,0.0001726,2]
[334887156,1723626683619,-985.93,0.0001726,2]
[334887157,1723626683629,-3137.69,0.0001726,2]
[334887158,1723626683639,-1305.48,0.0001726,2]
[334887159,1723626683648,-500.0,0.0001726,2]
[334887160,1723626683658,-644.37,0.0001726,2]
[334887161,1723626683667,-1305.6,0.0001726,2]
[334887162,1723626683677,-536.79,0.0001726,2]
[334887163,1723626683686,-983.66,0.0001726,2]
[334887164,1723626683696,-500.0,0.0001726,2]
[334887165,1723626683705,-500.0,0.0001726,2]
[334887166,1723626683715,-677.53,0.0001726,2]
[334887167,1723626683725,-2121.13,0.0001726,2]
[334887168,1723626683735,-638.37,0.0001726,2]
[334887169,1723626683744,-759.39,0.0001726,2]
[334887170,1723626683754,-500.0,0.0001726,2]
[334887171,1723626683764,-500.0,0.0001726,2]
[334887172,1723626683773,-1352.79,0.0001726,2]
[334887173,1723626683782,-794.59,0.0001726,2]
[334887174,1723626683791,-849.35,0.0001726,2]
[334887175,1723626683800,-655.62,0.0001726,2]
[334887176,1723626683810,-500.0,0.0001726,2]
[334887177,1723626683820,-238.24394275,0.0001726,2]
[334887178,1723626683829,-1159.21,0.0001726,2]
[334887179,1723626683839,-500.0,0.0001726,2]
[334887180,1723626683849,-500.0,0.0001726,2]
[334887181,1723626683858,-500.0,0.0001726,2]
[334887182,1723626683868,-733.33,0.0001726,2]
[334887183,1723626683877,-500.0,0.0001726,2]
[334887184,1723626683886,-562.63,0.0001726,2]
[334887185,1723626683895,-1460.87,0.0001726,2]
[334887186,1723626683905,-996.55,0.0001726,2]
[334887187,1723626683914,-1258.81,0.0001726,2]
[334887188,1723626683924,-500.0,0.0001726,2]
[334887189,1723626683934,-682.77,0.0001726,2]
[334887190,1723626683943,-725.26,0.0001726,2]
[334887191,1723626683952,-796.91,0.0001726,2]
[334887192,1723626683961,-604.11,0.0001726,2]
[334887193,1723626683971,-678.33,0.0001726,2]
[334887194,1723626683981,-500.0,0.0001726,2]
[334887195,1723626683990,-500.0,0.0001726,2]
[334887196,1723626683999,-1036.99,0.0001726,2]
[334887197,1723626684008,-684.51,0.0001726,2]
[334887198,1723626684018,-2400.86,0.0001726,2]
[334887199,1723626684027,-1157.66,0.0001726,2]
[334887200,1723626684036,-2787.1,0.0001726,2]
[334887201,1723626684045,-500.0,0.0001726,2]
[334887202,1723626684054,-1126.69,0.0001726,2]
[334887203,1723626684064,-1607.6,0.0001726,2]
[334887204,1723626684073,-500.0,0.0001726,2]
[334887205,1723626684082,-500.0,0.0001726,2]
[334887206,1723626684091,-780.32,0.0001726,2]
[334887207,1723626684100,-544.62,0.0001726,2]
[334887208,1723626684109,-507.47,0.0001726,2]
[334887209,1723626684119,-3758.29,0.0001726,2]
[334887210,1723626684127,-1854.98,0.0001726,2]
[334887211,1723626684136,-500.0,0.0001726,2]
[334887212,1723626684146,-642.83,0.0001726,2]
[334887213,1723626684155,-556.33,0.0001726,2]
[334887214,1723626684165,-500.0,0.0001726,2]
[334887215,1723626684174,-500.0,0.0001726,2]
[334887216,1723626684184,-659.96,0.0001726,2]
[334887217,1723626684193,-635.37,0.0001726,2]
[334887218,1723626684203,-810.55,0.0001726,2]
[334887219,1723626684211,-500.0,0.0001726,2]
[334887220,1723626684221,-500.0,0.0001726,2]
[334887221,1723626684232,-500.0,0.0001726,2]
[334887222,1723626684241,-893.45,0.0001726,2]
[334887223,1723626684250,-734.11,0.0001726,2]
[334887224,1723626684259,-1023.98,0.0001726,2]
[334887225,1723626684269,-2346.66,0.0001726,2]
[334887226,1723626684279,-500.0,0.0001726,2]
[334887227,1723626684288,-7848.21,0.0001726,2]
[334887228,1723626684297,-500.0,0.0001726,2]
[334887229,1723626684307,-687.93,0.0001726,2]
[334887230,1723626684316,-743.2,0.0001726,2]
[334887231,1723626684325,-500.0,0.0001726,2]
[334887232,1723626684335,-150.0,0.0001732,2]
[334887233,1723626684344,-1152.0,0.00017332,2]
[334887234,1723626684354,-150.0,0.00017388,2]
[334887235,1723626684363,-150.0,0.00017388,2]
[334887236,1723626684372,-150.0,0.00017436,2]
[334887237,1723626684381,-150.0,0.00017455,2]
[334887238,1723626684390,-159.63,0.00017457,2]
[334887239,1723626684399,-2209.71280001,0.000175,7]
[334887240,1723626684408,-150.0,0.00017523,2]
[334887241,1723626684418,-458.58096187,0.00017534,2]
[334887242,1723626684431,-1500.86,0.00017534,2]
[334887243,1723626684440,-1105.99,0.00017534,2]
[334887244,1723626684449,-601.4,0.00017534,2]
[334887245,1723626684459,-849.17,0.00017534,2]
[334887246,1723626684469,-500.0,0.00017534,2]
[334887247,1723626684479,-500.0,0.00017534,2]
[334887248,1723626684489,-534.64785146,0.00017534,2]
[334887249,1723626684498,-500.0,0.00017534,2]
[334887250,1723626684508,-500.0,0.00017534,2]
[334887251,1723626684518,-512.44,0.00017534,2]
[334887252,1723626684527,-500.0,0.00017534,2]
[334887253,1723626684537,-678.29,0.00017534,2]
[334887254,1723626684546,-511.38,0.00017534,2]
[334887255,1723626684555,-500.0,0.00017534,2]
[334887256,1723626684565,-481.52008178,0.00017534,2]
[334887257,1723626684574,-1974.32,0.00017534,2]
[334887258,1723626684583,-500.0,0.00017534,2]
[334887259,1723626684592,-500.0,0.00017534,2]
[334887260,1723626684602,-226.61,0.00017534,2]
[334887261,1723626684611,-500.0,0.00017534,2]
[334887262,1723626684621,-500.0,0.00017534,2]
[334887263,1723626684631,-591.86,0.00017534,2]
[334887264,1723626684640,-666.36,0.00017534,2]
[334887265,1723626684650,-212.73648198,0.00017534,2]
[334887266,1723626684660,-552.65809525,0.00017534,2]
[334887267,1723626684670,-554.42,0.00017534,2]
[334887268,1723626684680,-428.60238853,0.00017534,2]
[334887269,1723626684690,-500.0,0.00017534,2]
[334887270,1723626684700,-500.0,0.00017534,2]
[334887271,1723626684709,-500.0,0.00017534,2]
[334887272,1723626684719,-500.0,0.00017534,2]
[334887273,1723626684728,-212.25,0.00017534,2]
[334887274,1723626684737,-385.21599965,0.00017534,2]
[334887275,1723626684747,-573.31,0.00017534,2]
[334887276,1723626684756,-500.0,0.00017534,2]
[334887277,1723626684765,-500.0,0.00017534,2]
[334887278,1723626684774,-500.0,0.00017534,2]
[334887279,1723626684784,-500.0,0.00017534,2]
[334887280,1723626684793,-500.0,0.00017534,2]
[334887281,1723626684803,-783.31,0.00017534,2]
[334887282,1723626684812,-500.0,0.00017534,2]
[334887283,1723626684822,-520.19,0.00017534,2]
[334887284,1723626684832,-500.0,0.00017534,2]
[334887285,1723626684841,-500.0,0.00017534,2]
[334887286,1723626684850,-500.0,0.00017534,2]
[334887287,1723626684860,-922.73,0.00017534,2]
[334887288,1723626684870,-500.0,0.00017534,2]
[334887289,1723626684879,-830.91,0.00017534,2]
[334887290,1723626684889,-227.14992713,0.00017534,2]
[334887291,1723626684898,-500.0,0.00017534,2]
[334887292,1723626684907,-500.0,0.00017534,2]
[334887293,1723626684917,-690.05,0.00017534,2]
[334887294,1723626684926,-500.0,0.00017534,2]
[334887295,1723626684936,-500.0,0.00017534,2]
[334887296,1723626684945,-818.44,0.00017534,2]
[334887297,1723626684954,-500.0,0.00017534,2]
[334887298,1723626684964,-500.0,0.00017534,2]
[334887299,1723626684973,-500.0,0.00017534,2]
[334887300,1723626684983,-500.0,0.00017534,2]
[334887301,1723626684992,-274.42268732,0.00017534,2]
[334887302,1723626685002,-542.84,0.00017534,2]
[334887303,1723626685011,-500.0,0.00017534,2]
[334887304,1723626685020,-500.0,0.00017534,2]
[334887305,1723626685029,-609.17,0.00017534,2]
[334887306,1723626685039,-579.6,0.00017534,2]
[334887307,1723626685048,-500.0,0.00017534,2]
[334887308,1723626685057,-653.02,0.00017534,2]
[334887309,1723626685066,-500.0,0.00017534,2]
[334887310,1723626685076,-500.0,0.00017534,2]
[334887311,1723626685085,-2177.45,0.00017534,2]
[334887312,1723626685094,-1063.82,0.00017534,2]
[334887313,1723626685103,-500.0,0.00017534,2]
[334887314,1723626685112,-500.0,0.00017534,2]
[334887315,1723626685122,-845.57,0.00017534,2]
[334887316,1723626685131,-1527.58,0.00017534,2]
[334887317,1723626685140,-676.31,0.00017534,2]
[334887318,1723626685150,-500.0,0.00017534,2]
[334887319,1723626685159,-1715.7,0.00017534,2]
[334887320,1723626685169,-500.0,0.00017534,2]
[334887321,1723626685178,-754.95,0.00017534,2]
[334887322,1723626685187,-500.0,0.00017534,2]
[334887323,1723626685196,-972.03,0.00017534,2]
[334887324,1723626685206,-524.53,0.00017534,2]
[334887325,1723626685215,-500.0,0.00017534,2]
[334887326,1723626685225,-500.0,0.00017534,2]
[334887327,1723626685234,-770.2,0.00017534,2]
[334887328,1723626685243,-608.38,0.00017534,2]
[334887329,1723626685252,-2373.49,0.00017534,2]
[334887330,1723626685262,-562.69,0.00017534,2]
[334887331,1723626685271,-6691.92,0.00017534,2]
[334887332,1723626685280,-644.93,0.00017534,2]
[334887333,1723626685289,-2731.88,0.00017534,2]
[334887334,1723626685298,-2589.64,0.00017534,2]
[334887335,1723626685308,-500.0,0.00017534,2]
[334887336,1723626685317,-552.38,0.00017534,2]
[334887337,1723626685326,-2632.4,0.00017534,2]
[334887338,1723626685335,-1402.43,0.00017534,2]
[334887339,1723626685344,-2123.25,0.00017534,2]
[334887340,1723626685354,-670.79,0.00017534,2]
[334887341,1723626685363,-759.51,0.00017534,2]
[334887342,1723626685373,-985.93,0.00017534,2]
[334887343,1723626685382,-3137.69,0.00017534,2]
[334887344,1723626685392,-1305.48,0.00017534,2]
[334887345,1723626685401,-500.0,0.00017534,2]
[334887346,1723626685411,-644.37,0.00017534,2]
[334887347,1723626685421,-1305.6,0.00017534,2]
[334887348,1723626685435,-536.79,0.00017534,2]
[334887349,1723626685445,-983.66,0.00017534,2]
[334887350,1723626685454,-500.0,0.00017534,2]
[334887351,1723626685464,-500.0,0.00017534,2]
[334887352,1723626685475,-677.53,0.00017534,2]
[334887353,1723626685484,-2121.13,0.00017534,2]
[334887354,1723626685493,-638.37,0.00017534,2]
[334887355,1723626685503,-759.39,0.00017534,2]
[334887356,1723626685513,-500.0,0.00017534,2]
[334887357,1723626685522,-500.0,0.00017534,2]
[334887358,1723626685531,-1352.79,0.00017534,2]
[334887359,1723626685540,-794.59,0.00017534,2]
[334887360,1723626685549,-849.35,0.00017534,2]
[334887361,1723626685558,-655.62,0.00017534,2]
[334887362,1723626685567,-388.68582221,0.00017534,2]
[334887363,1723626685577,-1159.21,0.00017534,2]
[334887364,1723626685586,-500.0,0.00017534,2]
[334887365,1723626685596,-160.3055221,0.00017534,2]
[334887366,1723626685605,-500.0,0.00017534,2]
[334887367,1723626685615,-733.33,0.00017534,2]
[334887368,1723626685624,-500.0,0.00017534,2]
[334887369,1723626685633,-562.63,0.00017534,2]
[334887370,1723626685643,-1460.87,0.00017534,2]
[334887371,1723626685652,-996.55,0.00017534,2]
[334887372,1723626685662,-1258.81,0.00017534,2]
[334887373,1723626685672,-500.0,0.00017534,2]
[334887374,1723626685682,-682.77,0.00017534,2]
[334887375,1723626685692,-725.26,0.00017534,2]
[334887376,1723626685703,-796.91,0.00017534,2]
[334887377,1723626685712,-604.11,0.00017534,2]
[334887378,1723626685721,-678.33,0.00017534,2]
[334887379,1723626685732,-500.0,0.00017534,2]
[334887380,1723626685742,-500.0,0.00017534,2]
[334887381,1723626685751,-1036.99,0.00017534,2]
[334887382,1723626685761,-684.51,0.00017534,2]
[334887383,1723626685771,-2400.86,0.00017534,2]
[334887384,1723626685780,-1157.66,0.00017534,2]
[334887385,1723626685790,-2787.1,0.00017534,2]
[334887386,1723626685800,-500.0,0.00017534,2]
[334887387,1723626685810,-1126.69,0.00017534,2]
[334887388,1723626685819,-1607.6,0.00017534,2]
[334887389,1723626685829,-500.0,0.00017534,2]
[334887390,1723626685839,-500.0,0.00017534,2]
[334887391,1723626685849,-780.32,0.00017534,2]
[334887392,1723626685859,-544.62,0.00017534,2]
[334887393,1723626685869,-507.47,0.00017534,2]
[334887394,1723626685878,-3758.29,0.00017534,2]
[334887395,1723626685888,-1854.98,0.00017534,2]
[334887396,1723626685897,-500.0,0.00017534,2]
[334887397,1723626685907,-642.83,0.00017534,2]
[334887398,1723626685918,-556.33,0.00017534,2]
[334887399,1723626685928,-500.0,0.00017534,2]
[334887400,1723626685938,-500.0,0.00017534,2]
[334887401,1723626685948,-659.96,0.00017534,2]
[334887402,1723626685957,-635.37,0.00017534,2]
[334887403,1723626685968,-500.0,0.00017534,2]
[334887404,1723626685977,-810.55,0.00017534,2]
[334887405,1723626685987,-500.0,0.00017534,2]
[334887406,1723626685996,-500.0,0.00017534,2]
[334887407,1723626686006,-734.11,0.00017534,2]
[334887408,1723626686015,-1023.98,0.00017534,2]
[334887409,1723626686024,-893.45,0.00017534,2]
[334887410,1723626686033,-2346.66,0.00017534,2]
[334887411,1723626686043,-500.0,0.00017534,2]
[334887412,1723626686215,-7848.21,0.00017534,2]
[334887413,1723626686226,-500.0,0.00017534,2]
[334887414,1723626686236,-687.93,0.00017534,2]
[334887415,1723626686245,-743.2,0.00017534,2]
[334887416,1723626686254,-150.0,0.00017557,2]
[334887417,1723626686264,-150.0,0.0001759,2]
[334887418,1723626686274,-520.0,0.0001761,2]
[334887419,1723626686284,-150.0,0.00017658,2]
[334887420,1723626686294,-150.0,0.00017726,2]
[334887421,1723626686305,-150.0,0.00017726,2]
[334887422,1723626686314,-1902.68,0.00017728,2]
[334887423,1723626686324,-19999.99,0.00017728,2]
[334887424,1723626686334,-13171.86,0.00017728,2]
[334887425,1723626686344,-16193.27,0.00017728,2]
[334887426,1723626686354,-150.0,0.00017793,2]
[334887427,1723626686364,-15193.7388184,0.00017796,2]
[334887428,1723626686374,-150.0,0.00017798,2]
[334887429,1723626686384,-1500.86,0.00017808,2]
[334887430,1723626686393,-1105.99,0.00017808,2]
[334887431,1723626686403,-154.515367,0.00017808,2]
[334887432,1723626686413,-601.4,0.00017808,2]
[334887433,1723626686422,-849.17,0.00017808,2]
[334887434,1723626686435,-500.0,0.00017808,2]
[334887435,1723626686446,-500.0,0.00017808,2]
[334887436,1723626686456,-500.0,0.00017808,2]
[334887437,1723626686465,-500.0,0.00017808,2]
[334887438,1723626686476,-512.44,0.00017808,2]
[334887439,1723626686486,-678.29,0.00017808,2]
[334887440,1723626686495,-511.38,0.00017808,2]
[334887441,1723626686506,-500.0,0.00017808,2]
[334887442,1723626686515,-1974.32,0.00017808,2]
[334887443,1723626686525,-500.0,0.00017808,2]
[334887444,1723626686534,-500.0,0.00017808,2]
[334887445,1723626686544,-226.61,0.00017808,2]
[334887446,1723626686554,-500.0,0.00017808,2]
[334887447,1723626686564,-500.0,0.00017808,2]
[334887448,1723626686573,-591.86,0.00017808,2]
[334887449,1723626686583,-666.36,0.00017808,2]
[334887450,1723626686593,-554.42,0.00017808,2]
[334887451,1723626686603,-500.0,0.00017808,2]
[334887452,1723626686612,-500.0,0.00017808,2]
[334887453,1723626686622,-500.0,0.00017808,2]
[334887454,1723626686632,-267.94062163,0.00017808,2]
[334887455,1723626686642,-573.31,0.00017808,2]
[334887456,1723626686652,-500.0,0.00017808,2]
[334887457,1723626686661,-500.0,0.00017808,2]
[334887458,1723626686672,-500.0,0.00017808,2]
[334887459,1723626686682,-500.0,0.00017808,2]
[334887460,1723626686691,-500.0,0.00017808,2]
[334887461,1723626686701,-783.31,0.00017808,2]
[334887462,1723626686711,-500.0,0.00017808,2]
[334887463,1723626686721,-520.19,0.00017808,2]
[334887464,1723626686731,-500.0,0.00017808,2]
[334887465,1723626686741,-500.0,0.00017808,2]
[334887466,1723626686751,-281.92785665,0.00017808,2]
[334887467,1723626686762,-922.73,0.00017808,2]
[334887468,1723626686772,-500.0,0.00017808,2]
[334887469,1723626686782,-830.91,0.00017808,2]
[334887470,1723626686791,-500.0,0.00017808,2]
[334887471,1723626686802,-500.0,0.00017808,2]
[334887472,1723626686812,-690.05,0.00017808,2]
[334887473,1723626686821,-255.50607932,0.00017808,2]
[334887474,1723626686831,-500.0,0.00017808,2]
[334887475,1723626686842,-818.44,0.00017808,2]
[334887476,1723626686852,-500.0,0.00017808,2]
[334887477,1723626686861,-500.0,0.00017808,2]
[334887478,1723626686871,-414.51287053,0.00017808,2]
[334887479,1723626686881,-500.0,0.00017808,2]
[334887480,1723626686891,-542.84,0.00017808,2]
[334887481,1723626686901,-500.0,0.00017808,2]
[334887482,1723626686911,-500.0,0.00017808,2]
[334887483,1723626686921,-609.17,0.00017808,2]
[334887484,1723626686931,-579.6,0.00017808,2]
[334887485,1723626686942,-500.0,0.00017808,2]
[334887486,1723626686951,-653.02,0.00017808,2]
[334887487,1723626686961,-500.0,0.00017808,2]
[334887488,1723626686971,-631.17717041,0.00017808,2]
[334887489,1723626686982,-2177.45,0.00017808,2]
[334887490,1723626686992,-1063.82,0.00017808,2]
[334887491,1723626687002,-500.0,0.00017808,2]
[334887492,1723626687012,-500.0,0.00017808,2]
[334887493,1723626687023,-845.57,0.00017808,2]
[334887494,1723626687032,-1527.58,0.00017808,2]
[334887495,1723626687042,-676.31,0.00017808,2]
[334887496,1723626687052,-500.0,0.00017808,2]
[334887497,1723626687062,-1715.7,0.00017808,2]
[334887498,1723626687072,-500.0,0.00017808,2]
[334887499,1723626687081,-754.95,0.00017808,2]